bitfinex-derivatives/quotes_ETHF0:USTF0_20250426
["timestamp","ask_amount","ask_price","bid_price","bid_amount"]
[1745696357127,1.10595,1807.9,1807.7,3.513]
[1745696357339,3.2072,1807.8,1807.7,3.513]
[1745696357839,7.52096,1807.8,1807.7,3.513]
[1745696358045,6.415,1807.8,1807.7,3.513]
[1745696358235,12.82896,1807.8,1807.7,3.513]
[1745696358435,11.723,1807.8,1807.7,3.513]
[1745696358944,12.82896,1807.8,1807.7,3.513]
[1745696359434,11.723,1807.8,1807.7,3.513]
[1745696360038,12.82896,1807.8,1807.7,3.513]
[1745696364041,11.723,1807.8,1807.7,4.61902]
[1745696365343,12.82896,1807.8,1807.7,3.513]
[1745696367244,9.62116,1807.8,1807.7,3.513]
[1745696374353,11.28017,1807.8,1807.5,3.519]
[1745696374544,1.5836,1807.7,1807.6,1.10608]
[1745696374747,6.111,1807.8,1807.7,1.10602]
[1745696374946,5.308,1807.8,1807.7,1.10602]
[1745696375141,5.308,1807.8,1807.7,2.70672]
[1745696376250,5.308,1807.8,1807.7,1.6007]
[1745696376751,6.8916,1807.8,1807.6,4.62507]
[1745696376945,2.4013,1807.7,1807.6,4.62507]
[1745696378342,7.7093,1807.7,1807.6,4.62507]
[1745696378645,7.7093,1807.7,1807.6,3.519]
[1745696382945,5.308,1807.7,1807.6,4.62508]
[1745696383154,5.308,1807.7,1807.6,6.20538]
[1745696385752,6.9816,1807.7,1807.6,6.20538]
[1745696386652,6.9816,1807.7,1807.6,7.01018]
[1745696388952,5.308,1807.7,1807.6,7.01018]
[1745696397458,5.31164428,1807.7,1807.6,7.01018]
[1745696399457,5.31164428,1807.7,1807.6,16.19318]
[1745696421873,6.99374428,1807.7,1807.6,16.19318]
[1745696423784,5.31164428,1807.7,1807.6,18.59618]
[1745696428986,5.31164428,1807.7,1807.6,15.38838]
[1745696446801,0.66648427,1807.7,1807.6,20.38838]
[1745696447104,0.827,1808.0,1807.9,10.2889]
[1745696447406,0.827,1808.0,1807.9,17.0187]
[1745696448102,0.827,1808.0,1807.9,17.8839]
[1745696448103,6.135,1808.0,1807.9,17.8839]
[1745696448695,6.937,1808.0,1807.9,17.8839]
[1745696451403,6.937,1808.0,1807.9,17.0187]
[1745696452605,6.937,1808.0,1807.9,13.8109]
[1745696453000,6.937,1808.0,1807.9,17.0187]
[1745696453204,6.937,1808.0,1807.9,17.8591]
[1745696466513,6.937,1808.0,1807.9,4.6279]
[1745696466711,6.937,1808.0,1807.9,3.522]
[1745696466907,6.937,1808.0,1807.8,4.61993]
[1745696466908,11.937,1808.0,1807.8,4.61993]
[1745696467108,1.5876,1807.9,1807.8,4.61993]
[1745696467913,1.5876,1807.9,1807.8,3.514]
[1745696468108,16.2093,1807.9,1807.8,3.514]
[1745696468507,11.2093,1807.9,1807.8,3.514]
[1745696469217,10.1034,1807.9,1807.8,3.514]
[1745696469707,10.1034,1807.9,1807.8,4.61996]
[1745696469913,15.1034,1807.9,1807.5,7.8279]
[1745696470107,1.10603,1807.7,1807.5,7.8279]
[1745696470307,6.5032,1807.6,1807.5,4.6201]
[1745696471212,11.8112,1807.6,1807.5,4.6201]
[1745696472913,8.6034,1807.6,1807.5,4.6201]
[1745696473113,11.8112,1807.6,1807.5,4.6201]
[1745696474620,8.6034,1807.6,1807.5,4.6201]
[1745696474822,11.8112,1807.6,1807.5,4.6201]
[1745696475519,10.9613,1807.6,1807.5,4.6201]
[1745696475719,7.7535,1807.6,1807.5,4.6201]
[1745696475913,5.308,1807.6,1807.5,4.6201]
[1745696476114,5.308,1807.6,1807.5,7.1395]
[1745696481010,6.8882,1807.6,1807.5,7.1395]
[1745696484228,6.8882,1807.6,1807.5,16.3225]
[1745696489529,5.308,1807.6,1807.5,16.3225]
[1745696493942,6.9816,1807.6,1807.5,16.3225]
[1745696496939,5.308,1807.6,1807.5,16.3225]
[1745696502750,5.308,1807.6,1807.5,4.6201]
[1745696502939,6.8755,1807.6,1807.5,4.6201]
[1745696503638,6.8755,1807.6,1807.5,3.514]
[1745696503837,6.8755,1807.6,1807.5,4.62014]
[1745696504244,11.18938,1807.6,1807.5,3.514]
[1745696504449,1.10616,1807.5,1807.3,3.514]
[1745696504753,2.69216,1807.5,1807.3,3.514]
[1745696505348,1.586,1807.4,1807.3,3.514]
[1745696506046,1.586,1807.4,1807.3,4.62026]
[1745696506247,6.894,1807.4,1807.3,4.62026]
[1745696510040,6.894,1807.4,1807.3,3.514]
[1745696510239,6.894,1807.4,1807.3,4.62026]
[1745696512356,6.894,1807.4,1807.3,7.12066]
[1745696513756,6.894,1807.4,1807.3,5.40876]
[1745696513943,6.894,1807.4,1807.3,4.62026]
[1745696516860,7.7178,1807.4,1807.3,4.62026]
[1745696517850,8.824,1807.4,1807.3,3.514]
[1745696518159,10.9256,1807.4,1807.3,4.62026]
[1745696519351,10.9256,1807.4,1807.3,3.514]
[1745696519551,10.9256,1807.4,1807.3,4.62026]
[1745696519963,7.7178,1807.4,1807.3,4.62026]
[1745696533762,7.7178,1807.4,1807.3,5.48096]
[1745696539471,7.7178,1807.4,1807.3,3.514]
[1745696541062,7.7178,1807.4,1807.3,4.62026]
[1745696546471,7.7178,1807.4,1807.3,3.514]
[1745696547071,7.7178,1807.4,1807.3,4.62026]
[1745696547663,7.7178,1807.4,1807.3,1.10626]
[1745696553475,7.7178,1807.4,1807.3,1.95726]
[1745696555869,7.7178,1807.4,1807.3,0.851]
[1745696556066,12.7178,1807.4,1806.8,5.958]
[1745696556272,3.2078,1807.1,1806.7,13.44038547]
[1745696556471,1.10654,1806.9,1806.7,13.44038547]
[1745696556677,1.10654,1806.9,1806.7,12.01351547]
[1745696556678,1.674,1806.8,1806.7,12.01351547]
[1745696556873,2.78057,1806.8,1806.7,10.90688547]
[1745696557074,1.674,1806.8,1806.7,10.90688547]
[1745696557274,6.982,1806.8,1806.7,3.514]
[1745696558377,8.08857,1806.8,1806.7,3.514]
[1745696558888,6.982,1806.8,1806.7,3.514]
[1745696559379,8.08857,1806.8,1806.6,7.39288547]
[1745696559578,3.3934,1806.7,1806.6,7.39288547]
[1745696560082,3.3934,1806.7,1806.6,8.49957547]
[1745696560276,8.7014,1806.7,1806.6,8.49957547]
[1745696561685,8.7014,1806.7,1806.6,7.39288547]
[1745696562389,8.7014,1806.7,1806.6,8.49957547]
[1745696562577,8.7014,1806.7,1806.6,1.10669]
[1745696564683,9.80803,1806.7,1806.5,2.82221]
[1745696564884,1.6661,1806.6,1806.5,2.82221]
[1745696565186,6.9741,1806.6,1806.5,2.82221]
[1745696566293,6.9741,1806.6,1806.5,1.7155]
[1745696566588,6.9741,1806.6,1806.5,2.82225]
[1745696567896,6.9741,1806.6,1806.5,1.7155]
[1745696568994,6.9741,1806.6,1806.4,6.28458]
[1745696569296,1.677,1806.5,1806.4,7.99038]
[1745696570187,6.985,1806.5,1806.4,7.99038]
[1745696579995,6.985,1806.5,1806.4,17.17338]
[1745696580200,6.985,1806.5,1806.4,7.99038]
[1745696581704,6.985,1806.5,1806.4,6.8836]
[1745696582001,6.985,1806.5,1806.4,7.99042]
[1745696582601,7.8021,1806.5,1806.4,7.99042]
[1745696584510,5.308,1806.5,1806.4,7.99042]
[1745696584699,1.794,1806.5,1806.4,25.38122]
[1745696588908,1.794,1806.5,1806.4,20.38122]
[1745696594810,0.8561,1807.1,1807.0,1.10645]
[1745696595116,2.5141,1807.1,1807.0,4.31425]
[1745696595613,0.8547,1807.3,1807.2,1.10633]
[1745696595805,2.5127,1807.3,1807.2,1.10633]
[1745696596310,7.8207,1807.3,1807.2,1.10633]
[1745696607623,7.8207,1807.3,1807.2,3.50803]
[1745696608123,7.8207,1807.3,1807.2,1.92883]
[1745696608537,7.8207,1807.3,1807.2,3.50803]
[1745696613519,7.8207,1807.3,1807.2,1.10633]
[1745696622132,5.308,1807.3,1807.2,1.10633]
[1745696622431,5.308,1807.3,1807.2,3.64973]
[1745696622933,6.93,1807.3,1807.2,3.64973]
[1745696625530,5.308,1807.3,1807.2,3.64973]
[1745696630528,5.308,1807.3,1807.2,12.83273]
[1745696633032,6.8726,1807.3,1807.2,12.83273]
[1745696638839,7.732,1807.3,1807.2,12.83273]
[1745696649540,7.732,1807.3,1807.2,10.28933]
[1745696649747,7.732,1807.3,1807.1,7.82914]
[1745696650044,2.83784,1807.2,1807.0,3.513]
[1745696650243,2.5487,1807.1,1807.0,3.513]
[1745696650938,2.5487,1807.1,1807.0,4.61945]
[1745696651139,7.8567,1807.1,1807.0,4.61945]
[1745696658661,1.10652,1806.9,1806.6,3.513]
[1745696658851,1.6794,1806.8,1806.7,1.10663]
[1745696659449,3.3923,1806.8,1806.7,1.10663]
[1745696660246,8.7003,1806.8,1806.7,1.10663]
[1745696663955,8.7003,1806.8,1806.6,4.3683]
[1745696663956,8.7003,1806.8,1806.6,4.61965]
[1745696664157,1.725,1806.7,1806.6,4.61965]
[1745696665256,7.033,1806.7,1806.6,4.61965]
[1745696666960,7.033,1806.7,1806.6,7.12345]
[1745696670761,7.033,1806.7,1806.6,7.93405]
[1745696674066,5.308,1806.7,1806.6,7.93405]
[1745696674666,5.308,1806.7,1806.6,12.93405]
[1745696676659,5.308,1806.7,1806.6,7.93405]
[1745696679467,5.308,1806.7,1806.6,17.11705]
[1745696685777,5.308,1806.7,1806.6,7.93405]
[1745696685978,5.308,1806.7,1806.5,9.1658]
[1745696686178,2.4783,1806.6,1806.5,13.78555]
[1745696686378,3.3154,1806.6,1806.5,13.78555]
[1745696686685,8.3154,1806.6,1806.3,7.82764]
[1745696686876,1.6108,1806.5,1806.4,1.10682]
[1745696688175,6.9188,1806.5,1806.4,1.10682]
[1745696695581,6.9188,1806.5,1806.4,2.84202]
[1745696705987,6.9188,1806.5,1806.4,1.10682]
[1745696708993,6.9188,1806.5,1806.3,7.82764]
[1745696709293,2.4974,1806.4,1806.1,0.0088]
[1745696709591,2.4759,1806.3,1806.1,0.0088]
[1745696709790,1.6363,1806.2,1806.1,1.1158]
[1745696711094,6.9443,1806.2,1806.1,1.1158]
[1745696712996,6.9443,1806.2,1806.1,1.107]
[1745696715308,6.9443,1806.2,1806.0,4.62001]
[1745696715600,2.5725,1806.1,1806.0,4.62001]
[1745696716201,2.5725,1806.1,1806.0,4.62006]
[1745696716202,7.8805,1806.1,1806.0,4.62006]
[1745696718200,7.8805,1806.1,1806.0,5.41046]
[1745696719200,7.8805,1806.1,1806.0,7.03886]
[1745696719501,2.5725,1806.1,1806.0,7.03886]
[1745696720301,0.8396,1806.3,1806.2,1.10694]
[1745696720504,2.4962,1806.3,1806.2,1.10694]
[1745696720896,2.4962,1806.3,1806.2,2.73534]
[1745696721203,3.2078,1806.4,1806.3,1.10688]
[1745696721404,3.2078,1806.4,1806.3,3.53238]
[1745696721706,3.2078,1806.4,1806.3,7.04638]
[1745696721902,4.8735,1806.4,1806.3,7.04638]
[1745696722200,10.1815,1806.4,1806.3,7.04638]
[1745696724308,6.9737,1806.4,1806.3,7.04638]
[1745696732913,7.8096,1806.4,1806.3,7.04638]
[1745696737809,5.308,1806.4,1806.3,7.04638]
[1745696738318,5.308,1806.4,1806.3,10.25418]
[1745696739315,6.9091,1806.4,1806.3,10.25418]
[1745696740109,7.7314,1806.4,1806.3,7.04638]
[1745696740315,7.7314,1806.4,1806.3,10.25418]
[1745696742013,7.7314,1806.4,1806.3,7.04638]
[1745696742212,7.7314,1806.4,1806.3,10.25418]
[1745696742408,5.308,1806.4,1806.3,10.25418]
[1745696742613,5.308,1806.4,1806.3,19.43718]
[1745696743308,4.00364,1806.4,1806.3,24.43718]
[1745696743517,2.25945,1806.4,1806.3,24.43718]
[1745696746512,2.25945,1806.4,1806.3,19.43718]
[1745696749122,5.308,1806.5,1806.4,10.28982]
[1745696749420,5.308,1806.5,1806.4,11.98952]
[1745696751326,5.308,1806.5,1806.4,15.19732]
[1745696759442,5.308,1806.5,1806.4,3.2078]
[1745696759648,11.0964,1806.5,1806.3,3.5315]
[1745696759836,2.474,1806.4,1806.3,3.5315]
[1745696760338,12.782,1806.4,1806.3,3.5315]
[1745696762142,12.782,1806.4,1806.3,4.63838]
[1745696764346,7.782,1806.4,1806.3,4.63838]
[1745696765339,2.474,1806.4,1806.3,4.63838]
[1745696768145,7.782,1806.4,1806.3,4.63838]
[1745696772248,2.474,1806.4,1806.3,4.63838]
[1745696775153,7.782,1806.4,1806.3,4.63838]
[1745696779650,6.9584,1806.4,1806.3,4.63838]
[1745696779950,5.308,1806.4,1806.3,7.22648]
[1745696783154,6.1119,1806.4,1806.3,4.63838]
[1745696783350,7.6999,1806.4,1806.3,4.63838]
[1745696787657,7.6999,1806.4,1806.3,7.18858]
[1745696787859,5.308,1806.4,1806.3,7.18858]
[1745696789665,4.9224,1806.4,1806.3,21.37158]
[1745696790264,4.9243,1806.8,1806.7,1.10663]
[1745696790464,4.9243,1806.8,1806.7,4.61863]
[1745696791059,4.9243,1806.8,1806.7,6.32993]
[1745696791253,10.2323,1806.8,1806.7,6.34743]
[1745696791664,10.2323,1806.8,1806.7,4.63613]
[1745696793057,7.0245,1806.8,1806.7,4.63613]
[1745696801373,7.0245,1806.8,1806.7,13.81913]
[1745696801675,7.0245,1806.8,1806.7,4.63613]
[1745696809376,7.0245,1806.8,1806.7,6.20233]
[1745696810075,5.308,1806.8,1806.7,6.20233]
[1745696810579,5.308,1806.8,1806.7,7.06933]
[1745696810882,5.308,1806.8,1806.7,10.27713]
[1745696811581,5.308,1806.8,1806.7,19.46013]
[1745696821190,5.308,1806.8,1806.7,16.25233]
[1745696821496,5.308,1806.8,1806.7,19.46013]
[1745696821899,6.9775,1806.8,1806.7,19.46013]
[1745696822399,5.308,1806.8,1806.7,19.46013]
[1745696823695,3.2078,1807.2,1806.7,19.46013]
[1745696823896,11.06904,1808.1,1806.7,19.46013]
[1745696823897,1.737,1808.1,1807.5,3.2078]
[1745696824099,0.35758224,1811.0,1809.1,3.2078]
[1745696824100,1.5954,1810.7,1809.1,3.2078]
[1745696824290,18.66526942,1810.1,1810.0,4.31239]
[1745696824489,0.01460986,1810.1,1810.0,3.2078]
[1745696824698,57.27910811,1810.1,1810.0,3.2078]
[1745696824999,57.27910811,1810.1,1810.0,4.32991]
[1745696825199,62.58710811,1810.1,1810.0,3.2253]
[1745696825593,62.58710811,1810.1,1810.0,4.32991]
[1745696826006,25.30666942,1810.1,1810.0,4.32991]
[1745696827202,0.02363161,2546.0,1810.0,6.9623]
[1745696827203,3.2078,1811.4,1810.0,6.9623]
[1745696827402,1.5692,1810.9,1810.5,3.2078]
[1745696827800,18.38865956,1810.6,1810.5,4.31211]
[1745696828000,18.38865956,1810.8,1810.6,1.10422]
[1745696828196,5.308,1810.6,1810.5,1.10431]
[1745696828502,5.308,1810.6,1810.5,4.31211]
[1745696829003,6.912,1810.6,1810.5,4.31211]
[1745696829497,67.58109825,1810.6,1810.3,3.2078]
[1745696829698,14.16402427,1810.4,1810.3,3.2078]
[1745696829997,14.16402427,1810.4,1810.3,4.31223]
[1745696830206,56.75246296,1810.4,1810.3,4.31223]
[1745696830596,56.75246296,1810.4,1810.3,3.2078]
[1745696830798,56.75246296,1810.4,1810.3,4.31223]
[1745696831698,5.308,1810.4,1810.3,4.31223]
[1745696834312,4.09158224,1811.0,1810.6,1.10422]
[1745696834514,41.37202093,1811.0,1810.6,4.31202]
[1745696834712,14.16402427,1810.7,1810.6,4.31202]
[1745696835211,51.44446296,1810.7,1810.6,4.31202]
[1745696836213,56.75246296,1810.7,1810.6,4.31202]
[1745696836708,56.75246296,1810.7,1810.6,3.2078]
[1745696836915,61.75246296,1810.7,1810.6,3.2078]
[1745696837102,61.75246296,1810.7,1810.0,9.1833]
[1745696837103,14.16402427,1810.3,1810.0,9.1833]
[1745696837307,15.82932427,1810.2,1810.1,1.10455]
[1745696837820,44.48527296,1810.2,1810.0,1.12209]
[1745696838115,14.16402427,1810.1,1810.0,1.12209]
[1745696838415,15.73315887,1810.1,1810.0,1.12209]
[1745696838718,44.38910756,1810.1,1810.0,1.12209]
[1745696839314,32.79492516,1810.1,1810.0,1.12211]
[1745696839717,36.00272516,1810.1,1810.0,1.12211]
[1745696842913,14.87162067,1810.1,1810.0,0.0175]
[1745696843715,18.60362067,1810.1,1810.0,0.0175]
[1745696845620,24.70817067,1810.1,1809.7,1.10476]
[1745696845915,3.2078,1809.9,1809.6,1.10486]
[1745696846119,1.639,1809.8,1809.7,1.1048]
[1745696846515,7.99482067,1809.8,1809.7,1.1048]
[1745696847111,13.30282067,1809.8,1809.7,1.1048]
[1745696848723,13.30282067,1809.8,1809.5,0.04061]
[1745696848912,3.2078,1809.6,1809.2,3.65233839]
[1745696849221,1.6269,1809.5,1809.3,1.10502]
[1745696849720,7.98272067,1809.5,1809.4,1.10498]
[1745696850120,6.9349,1809.5,1809.4,1.10498]
[1745696850515,6.9349,1809.5,1809.4,4.31278]
[1745696852612,6.9349,1809.5,1809.4,1.10498]
[1745696860023,5.308,1809.5,1809.4,1.10498]
[1745696860222,5.308,1809.5,1809.4,4.31278]
[1745696861228,1.6099,1809.7,1809.6,1.10486]
[1745696861420,0.5919092,1809.8,1809.6,1.10486]
[1745696863927,0.5919092,1809.8,1809.5,2.68987]
[1745696864122,0.5919092,1809.8,1809.6,1.10485]
[1745696864523,1.6115,1809.7,1809.6,1.10485]
[1745696865122,6.9195,1809.7,1809.6,1.10485]
[1745696866031,4.06889128,1809.9,1809.5,1.585]
[1745696866328,5.308,1809.7,1809.6,1.10486]
[1745696867425,5.308,1809.7,1809.5,2.68988]
[1745696867820,5.308,1809.7,1809.5,1.585]
[1745696870127,5.308,1809.7,1809.6,1.10486]
[1745696870334,5.308,1809.7,1809.5,2.68987]
[1745696870833,5.308,1809.7,1809.6,22.64473389]
[1745696873336,5.308,1809.7,1809.6,19.08015842]
[1745696874332,6.8879,1809.7,1809.6,19.08015842]
[1745696876136,6.8879,1809.7,1809.5,2.68989]
[1745696876733,6.8879,1809.7,1809.5,1.585]
[1745696876936,6.8879,1809.7,1809.5,2.68987]
[1745696877236,6.8879,1809.7,1809.5,2.6899]
[1745696877529,6.8879,1809.7,1809.5,1.585]
[1745696877735,6.8879,1809.7,1809.5,2.68989]
[1745696877933,6.8879,1809.7,1809.5,1.585]
[1745696879138,6.8879,1809.7,1809.4,3.2078]
[1745696879435,1.10498,1809.4,1809.3,7.30803883]
[1745696880229,7.0106,1809.4,1809.3,7.30803883]
[1745696881238,8.11558,1809.4,1809.3,7.30803883]
[1745696881535,7.0106,1809.4,1809.3,7.30803883]
[1745696882134,8.11558,1809.4,1809.3,7.30803883]
[1745696882533,7.0106,1809.4,1809.3,7.30803883]
[1745696882734,8.1156,1809.4,1809.2,4.9228]
[1745696883127,1.10504,1809.3,1809.2,4.9228]
[1745696883334,1.1051,1809.2,1809.0,3.2078]
[1745696883533,1.7107,1809.1,1808.9,7.5698]
[1745696884039,1.7107,1809.1,1808.9,8.67506]
[1745696884238,7.0187,1809.1,1808.9,8.67506]
[1745696884439,5.308,1809.1,1809.0,4.31302]
[1745696884632,5.308,1809.1,1809.0,5.92482]
[1745696885437,5.308,1809.1,1809.0,4.8196]
[1745696885835,5.308,1809.1,1809.0,5.92482]
[1745696886136,5.308,1809.1,1809.0,4.8196]
[1745696886333,5.308,1809.1,1808.8,10.51583883]
[1745696886532,2.4271,1809.0,1808.8,4.8235]
[1745696886732,2.4271,1809.0,1808.9,1.6157]
[1745696887130,6.1662,1809.0,1808.9,2.72099]
[1745696887837,6.1662,1809.0,1808.9,1.6157]
[1745696894735,7.27144,1809.0,1808.8,3.2078]
[1745696894936,1.6718,1808.9,1808.8,3.2078]
[1745696896142,6.9798,1808.9,1808.8,3.2078]
[1745696896334,6.9798,1808.9,1808.7,1.6758]
[1745696896644,6.9798,1808.9,1808.7,2.78119]
[1745696897742,5.308,1808.9,1808.8,1.10535]
[1745696899143,0.8582,1809.0,1808.9,1.10529]
[1745696899345,0.8582,1809.0,1808.9,3.2078]
[1745696900245,6.1662,1809.0,1808.9,6.04239]
[1745696900644,6.1662,1809.0,1808.9,4.9371]
[1745696902546,6.1662,1809.0,1808.9,6.04239]
[1745696903249,6.1662,1809.0,1808.9,4.9371]
[1745696903843,14.374,1809.0,1808.5,5.958]
[1745696904046,1.10539,1808.8,1808.5,8.66202]
[1745696904345,1.6124,1808.7,1808.5,8.66202]
[1745696904542,1.6124,1808.7,1808.5,2.70402]
[1745696904942,1.6124,1808.7,1808.5,1.5985]
[1745696905150,8.04929,1808.6,1808.3,7.30803883]
[1745696905446,3.332,1808.5,1808.3,7.30803883]
[1745696905650,1.6878,1808.4,1808.3,7.30803883]
[1745696906241,6.9958,1808.4,1808.3,7.30803883]
[1745696906449,6.9958,1808.4,1808.3,8.41368883]
[1745696906849,6.9958,1808.4,1808.2,2.81547]
[1745696907350,6.9958,1808.4,1808.3,1.10565]
[1745696907547,6.9958,1808.4,1808.2,1.10569]
[1745696907747,1.5945,1808.3,1808.2,1.10569]
[1745696909154,6.9025,1808.3,1808.2,1.10569]
[1745696909852,6.9025,1808.3,1808.1,2.68595]
[1745696910353,6.9025,1808.3,1808.2,1.5802]
[1745696916757,6.9025,1808.3,1808.0,4.3136]
[1745696916948,1.6742,1808.2,1808.1,1.10577]
[1745696917149,1.6742,1808.2,1808.1,2.81227]
[1745696918055,6.9822,1808.2,1808.1,2.81227]
[1745696920755,6.9822,1808.2,1808.1,1.7065]
[1745696922259,6.9822,1808.2,1808.1,2.81227]
[1745696922465,6.9822,1808.2,1808.1,1.7065]
[1745696922756,6.9822,1808.2,1808.1,2.81227]
[1745696923851,6.9822,1808.2,1808.0,3.2078]
[1745696924055,2.5168,1808.1,1807.9,2.72665]
[1745696924257,0.8142,1808.0,1807.9,2.72665]
[1745696925060,6.1222,1808.0,1807.9,2.72665]
[1745696932662,6.1222,1808.0,1807.9,1.6208]
[1745696932863,7.7928,1808.0,1807.9,1.6208]
[1745696933165,12.58767,1808.0,1807.6,4.31384]
[1745696933465,1.6706,1807.9,1807.6,5.97513]
[1745696933966,1.6706,1807.9,1807.7,1.6613]
[1745696934269,6.9786,1807.9,1807.7,2.7673]
[1745696934560,10.1864,1807.9,1807.6,3.2078]
[1745696934763,1.6387,1807.8,1807.6,4.31384]
[1745696935363,1.6387,1807.8,1807.7,1.10602]
[1745696935862,5.3277,1807.8,1807.7,1.10602]
[1745696936161,10.6357,1807.8,1807.7,1.10602]
[1745696937759,10.6357,1807.8,1807.6,3.2078]
[1745696937957,2.492,1807.7,1807.6,4.31384]
[1745696940264,7.8,1807.7,1807.6,4.31384]
[1745696941264,2.492,1807.7,1807.6,4.31384]
[1745696942064,2.492,1807.7,1807.4,3.2078]
[1745696942065,7.8,1807.7,1807.4,3.2078]
[1745696942268,2.66988,1807.6,1807.4,3.2078]
[1745696942564,9.3764,1807.7,1807.3,1.688]
[1745696942565,7.14954,1807.5,1807.3,1.688]
[1745696942868,2.67001,1807.4,1807.0,4.3142]
[1745696943171,2.67007,1807.3,1807.0,6.00222]
[1745696943367,1.5638,1807.2,1807.0,6.00222]
[1745696943570,2.67013,1807.2,1807.0,1.688]
[1745696943871,6.36015,1807.2,1807.0,1.688]
[1745696944071,1.7012,1807.1,1807.0,1.688]
[1745696944664,1.7012,1807.1,1806.9,1.10648]
[1745696944867,0.792,1807.0,1806.9,1.10648]
[1745696945065,0.792,1807.0,1806.9,2.80568]
[1745696945468,5.308,1807.1,1807.0,1.10645]
[1745696945667,5.308,1807.1,1807.0,2.80565]
[1745696946176,7.7499,1807.3,1807.2,1.10633]
[1745696946476,4.0599,1807.3,1807.2,1.10633]
[1745696947669,0.8521,1807.3,1807.2,1.10633]
[1745696949274,0.8521,1807.3,1807.2,2.82163]
[1745696950078,3.654,1807.4,1807.3,1.10626]
[1745696950381,3.654,1807.4,1807.3,5.91836]
[1745696950775,3.22,1807.6,1807.3,4.8121]
[1745696950979,0.792,1807.6,1807.5,4.31394]
[1745696951186,3.654,1807.8,1807.7,1.10602]
[1745696951683,4.4957,1807.8,1807.7,1.10602]
[1745696953188,9.8037,1807.8,1807.7,1.10602]
[1745696954185,4.4957,1807.8,1807.7,1.10602]
[1745696954480,4.4957,1807.8,1807.7,4.31382]
[1745696956287,9.8037,1807.8,1807.7,4.31382]
[1745696960185,4.4957,1807.8,1807.7,4.31382]
[1745696961086,9.8037,1807.8,1807.7,4.31382]
[1745696961987,11.502,1807.8,1807.7,4.31382]
[1745696963293,6.194,1807.8,1807.7,4.31382]
[1745696963493,4.4957,1807.8,1807.7,4.31382]
[1745696965393,0.8417,1807.8,1807.7,4.31382]
[1745696966295,6.1497,1807.8,1807.7,4.31382]
[1745696967187,0.8417,1807.8,1807.7,4.31382]
[1745696972897,0.8417,1807.8,1807.7,1.10602]
[1745696973099,0.8417,1807.8,1807.7,4.31382]
[1745696976704,2.5322,1807.8,1807.7,4.31382]
[1745696979599,0.8417,1807.8,1807.7,4.31382]
[1745696980602,0.8417,1807.8,1807.7,1.10602]
[1745696980909,2.5168,1807.8,1807.7,1.10602]
[1745696981208,7.8248,1807.8,1807.7,1.10602]
[1745696987808,7.8248,1807.8,1807.6,1.6043]
[1745696988013,1.5662,1807.7,1807.6,2.71038]
[1745696988706,1.5662,1807.7,1807.6,1.10608]
[1745696989106,6.8742,1807.7,1807.6,1.10608]
[1745696990416,7.98024,1807.7,1807.4,2.79186]
[1745696990616,1.6578,1807.6,1807.4,1.10616]
[1745696991008,1.1187,1807.5,1807.4,1.10616]
[1745696991614,2.7765,1807.5,1807.4,1.10616]
[1745696992117,8.0845,1807.5,1807.4,1.10616]
[1745696992612,11.6975,1807.5,1807.4,1.10616]
[1745696992816,11.6975,1807.5,1807.3,3.2078]
[1745696993015,2.8321,1807.4,1807.3,4.31406]
[1745696994120,8.1401,1807.4,1807.3,4.31406]
[1745696994711,8.1401,1807.4,1807.3,1.10626]
[1745696997514,8.1401,1807.4,1807.2,2.70148]
[1745696997712,8.1401,1807.4,1807.2,1.5952]
[1745696997912,1.6881,1807.3,1807.2,2.70153]
[1745696999217,6.9961,1807.3,1807.2,2.70153]
[1745697002327,5.308,1807.3,1807.2,2.70153]
[1745697005828,1.10641,1807.1,1806.8,2.83382]
[1745697006022,1.1967,1807.0,1806.8,1.7273]
[1745697006223,4.02,1807.0,1806.8,2.83382]
[1745697006626,4.02,1807.0,1806.8,1.7273]
[1745697006827,4.02,1807.0,1806.8,2.83381]
[1745697007426,4.02,1807.0,1806.9,1.10651]
[1745697009024,4.02,1807.0,1806.8,1.7273]
[1745697009230,2.3813,1807.0,1806.9,1.10651]
[1745697009630,2.3813,1807.0,1806.8,2.83383]
[1745697009929,3.9731,1807.0,1806.8,2.83383]
[1745697010132,3.9731,1807.0,1806.9,1.6083]
[1745697010731,5.07955,1807.0,1806.9,1.6083]
[1745697011228,10.38755,1807.0,1806.9,1.6083]
[1745697012636,1.10652,1806.9,1806.7,4.31439]
[1745697012934,1.7212,1806.9,1806.8,1.5959]
[1745697013130,1.10659,1806.8,1806.6,1.10667]
[1745697013332,1.10663,1806.7,1806.6,1.5959]
[1745697013531,2.82783,1806.7,1806.6,1.5959]
[1745697013729,1.7212,1806.7,1806.6,1.5959]
[1745697014132,7.0292,1806.7,1806.6,1.5959]
[1745697014529,7.0292,1806.7,1806.3,3.2078]
[1745697014732,5.1743,1806.6,1806.4,2.74178]
[1745697015540,1.10675,1806.5,1806.4,1.635]
[1745697015729,4.69379,1806.5,1806.2,1.1069]
[1745697015934,2.74903,1806.4,1806.3,1.635]
[1745697016536,1.6422,1806.4,1806.3,1.635]
[1745697016740,3.587,1806.5,1806.4,1.10682]